bitfinex/quotes_BTCUSD_20230114
["timestamp","ask_amount","ask_price","bid_price","bid_amount"]
[1673711793792,0.1559985,20758.0,20756.0,0.50303234]
[1673711794359,0.1559985,20758.0,20756.0,0.02124434]
[1673711796085,0.1559985,20758.0,20756.0,0.50302634]
[1673711796331,0.1559985,20758.0,20757.0,0.420459]
[1673711796586,0.1559985,20758.0,20757.0,1.865754]
[1673711796855,0.1559985,20758.0,20757.0,2.1114125]
[1673711797346,0.1559985,20758.0,20757.0,2.4114125]
[1673711797828,0.14342151,20763.0,20757.0,2.4114125]
[1673711798096,0.35855378,20762.0,20758.0,0.206754]
[1673711798348,0.84021178,20762.0,20758.0,1.30921118]
[1673711798615,0.14342151,20761.0,20758.0,1.30921118]
[1673711799108,0.35855378,20762.0,20758.0,1.30921118]
[1673711799355,0.14342151,20762.0,20758.0,1.30921118]
[1673711799601,0.14342151,20762.0,20759.0,0.17909762]
[1673711799862,1.4652553,20763.0,20760.0,0.481695]
[1673711799863,0.84019678,20763.0,20760.0,0.481695]
[1673711801872,0.84019678,20763.0,20760.0,0.509695]
[1673711802375,0.62506451,20763.0,20760.0,0.509695]
[1673711802630,0.62506451,20763.0,20761.0,0.11704946]
[1673711802876,0.481643,20763.0,20761.0,0.11704946]
[1673711803136,0.62506451,20763.0,20761.0,0.11704946]
[1673711804350,0.62506451,20763.0,20760.0,0.509695]
[1673711804622,0.14342151,20762.0,20759.0,0.66079462]
[1673711804916,0.33414746,20762.0,20759.0,1.14250062]
[1673711805165,0.14342151,20762.0,20759.0,1.14250062]
[1673711805418,0.14342151,20762.0,20760.0,0.24570226]
[1673711805680,1.17841727,20763.0,20760.0,0.028]
[1673711805681,0.84019778,20763.0,20760.0,0.028]
[1673711805974,0.84019778,20763.0,20759.0,0.481699]
[1673711805975,0.62506551,20763.0,20759.0,0.481696]
[1673711806215,0.62506551,20763.0,20759.0,0.622696]
[1673711806472,0.62506551,20763.0,20759.0,0.481696]
[1673711806946,0.62506551,20763.0,20760.0,0.1937218]
[1673711807466,0.62506551,20763.0,20760.0,0.2927218]
[1673711807725,0.62506551,20763.0,20760.0,0.099]
[1673711807990,0.62506551,20763.0,20759.0,0.963396]
[1673711808258,0.81579146,20763.0,20759.0,1.062396]
[1673711808529,0.14342151,20762.0,20759.0,0.4817]
[1673711808792,0.14342151,20762.0,20760.0,0.028]
[1673711809042,0.62507651,20762.0,20759.0,0.7094985]
[1673711809331,0.62507651,20762.0,20759.0,0.8084985]
[1673711809590,0.62507651,20762.0,20759.0,0.7094985]
[1673711809863,0.62507651,20762.0,20760.0,0.20240205]
[1673711810132,0.62507651,20762.0,20759.0,0.4817]
[1673711810665,0.62507651,20762.0,20759.0,0.141]
[1673711811444,1.10672551,20762.0,20759.0,0.141]
[1673711812238,1.32185778,20762.0,20759.0,0.141]
[1673711812750,0.481655,20762.0,20759.0,0.1409083]
[1673711813008,0.481655,20762.0,20760.0,0.14554303]
[1673711813288,0.62504351,20764.0,20760.0,0.62723203]
[1673711813534,0.62504351,20764.0,20760.0,1.10892703]
[1673711814274,0.84017578,20764.0,20760.0,1.20792703]
[1673711814522,0.84017578,20764.0,20761.0,0.1789623]
[1673711814523,0.62504351,20764.0,20761.0,0.1789623]
[1673711814746,0.62504351,20764.0,20761.0,0.6606293]
[1673711815000,0.62604351,20764.0,20761.0,0.6606293]
[1673711815510,0.62504351,20764.0,20761.0,0.6606293]
[1673711815785,0.62504351,20764.0,20762.0,0.12878523]
[1673711816009,0.62604351,20764.0,20762.0,0.12878523]
[1673711816258,0.482622,20764.0,20762.0,0.12878523]
[1673711816504,0.62604351,20764.0,20762.0,0.12878523]
[1673711817013,0.62504351,20764.0,20761.0,0.6606293]
[1673711817262,0.62504351,20764.0,20762.0,0.009]
[1673711818310,0.62504351,20764.0,20761.0,0.6606293]
[1673711818541,0.62504351,20764.0,20761.0,0.6666293]
[1673711818798,0.62504351,20764.0,20761.0,0.481667]
[1673711819042,0.62504351,20764.0,20762.0,0.009]
[1673711819600,0.481622,20764.0,20762.0,0.009]
[1673711820072,0.481622,20764.0,20760.0,0.62721603]
[1673711820318,0.67234795,20764.0,20761.0,0.006]
[1673711820568,0.62504351,20764.0,20761.0,0.006]
[1673711820818,0.62504351,20764.0,20762.0,0.009]
[1673711821076,1.10664551,20764.0,20762.0,0.009]
[1673711821339,1.10664551,20764.0,20760.0,0.62721803]
[1673711821581,1.15394995,20764.0,20761.0,0.2154519]
[1673711821831,0.481622,20764.0,20761.0,0.2154519]
[1673711822125,0.00902679,20765.0,20762.0,0.009]
[1673711822330,0.00902679,20765.0,20763.0,0.320459]
[1673711822589,0.00902679,20765.0,20763.0,0.481625]
[1673711823396,0.00902679,20765.0,20764.0,0.320459]
[1673711823657,0.00902679,20765.0,20764.0,1.765265]
[1673711823940,0.00902679,20765.0,20764.0,0.320459]
[1673711824192,0.00902679,20765.0,20763.0,0.509608]
[1673711824460,0.00902679,20765.0,20763.0,0.481608]
[1673711824753,0.00902679,20765.0,20764.0,0.14]
[1673711825279,0.1524483,20765.0,20764.0,0.14]
[1673711826107,0.1524483,20765.0,20762.0,0.481633]
[1673711826354,0.6340273,20765.0,20764.0,0.028]
[1673711827110,1.33073857,20765.0,20764.0,0.028]
[1673711827520,1.1156063,20765.0,20764.0,0.028]
[1673711827521,1.33073857,20765.0,20764.0,0.028]
[1673711828824,1.18731706,20765.0,20764.0,0.028]
[1673711829509,1.47416009,20765.0,20764.0,0.028]
[1673711830195,0.43090842,20769.0,20764.0,0.98680369]
[1673711830390,0.2967935,20771.0,20765.0,1.32716494]
[1673711830607,0.00926732,20777.0,20765.0,1.32716494]
[1673711830608,0.35917188,20775.0,20767.0,0.14404635]
[1673711831027,1.44480722,20776.0,20769.0,0.35053535]
[1673711831268,0.3684392,20777.0,20772.0,1.521507]
[1673711831269,0.00926732,20777.0,20772.0,1.521507]
[1673711831504,0.00926732,20777.0,20773.0,0.4726097]
[1673711831775,0.00926732,20777.0,20774.0,1.16903]
[1673711832026,0.00926732,20777.0,20775.0,0.420427]
[1673711832267,0.00926732,20777.0,20776.0,0.6876]
[1673711832548,0.00926732,20777.0,20776.0,0.94620114]
[1673711833033,0.00926732,20777.0,20776.0,0.93707539]
[1673711833269,0.00926732,20777.0,20776.0,1.42981023]
[1673711833509,0.00926732,20777.0,20776.0,1.50721023]
[1673711833761,0.00926732,20777.0,20776.0,1.80721023]
[1673711834001,7.385e-05,20778.0,20777.0,0.10926]
[1673711834255,0.0100676,20779.0,20778.0,1.764211]
[1673711834502,0.0100676,20779.0,20778.0,2.25694584]
[1673711834739,0.0100676,20779.0,20778.0,2.59991639]
[1673711835021,0.0100676,20779.0,20778.0,2.69491639]
[1673711835508,1e-08,20779.0,20778.0,2.35194584]
[1673711835756,1e-08,20779.0,20778.0,2.00726059]
[1673711836001,7.23e-06,20780.0,20779.0,0.197164]
[1673711836480,7.23e-06,20780.0,20778.0,1.35060559]
[1673711836481,7.23e-06,20780.0,20778.0,0.86932759]
[1673711836718,7.23e-06,20780.0,20779.0,0.08693276]
[1673711837014,7.23e-06,20780.0,20779.0,0.40708476]
[1673711837261,7.23e-06,20780.0,20779.0,0.54808476]
[1673711837515,7.23e-06,20780.0,20779.0,0.40708476]
[1673711838270,7.23e-06,20780.0,20779.0,0.54808476]
[1673711839957,7.23e-06,20780.0,20779.0,1.12933976]
[1673711840719,0.00926732,20781.0,20779.0,1.9220746]
[1673711840720,1.455e-05,20781.0,20779.0,1.9220746]
[1673711840964,1.455e-05,20781.0,20780.0,1.9678933]
[1673711841725,1.455e-05,20781.0,20780.0,2.3450933]
[1673711842458,1.455e-05,20781.0,20780.0,2.2678933]
[1673711842721,1.455e-05,20781.0,20780.0,2.64240833]
[1673711843225,1.455e-05,20781.0,20780.0,0.71287621]
[1673711843467,1.455e-05,20781.0,20780.0,0.331362]
[1673711843948,1.455e-05,20781.0,20780.0,0.139]
[1673711844432,0.96243055,20781.0,20776.0,0.25860114]
[1673711844676,0.20945095,20780.0,20777.0,0.1232669]
[1673711844917,0.20945095,20780.0,20774.0,0.581355]
[1673711844918,0.481264,20779.0,20774.0,0.1]
[1673711845218,0.19072595,20778.0,20772.0,0.10891429]
[1673711845489,0.67203095,20777.0,20773.0,0.22283956]
[1673711845747,0.19072595,20776.0,20773.0,0.22283956]
[1673711846257,0.19072595,20776.0,20772.0,0.00891429]
[1673711846258,0.018725,20775.0,20772.0,0.00891429]
[1673711846527,0.018725,20775.0,20772.0,0.14791429]
[1673711846528,0.19072595,20775.0,20772.0,0.14791429]
[1673711846780,0.19072595,20774.0,20772.0,0.00891429]
[1673711847043,0.19072595,20774.0,20773.0,0.14]
[1673711847044,0.489886,20774.0,20773.0,0.14]
[1673711847273,0.481386,20774.0,20773.0,0.01489143]
[1673711847526,0.018725,20774.0,20772.0,0.14791429]
[1673711847838,0.558531,20776.0,20772.0,0.00891429]
[1673711848280,0.558305,20777.0,20772.0,0.00891429]
[1673711848530,1.735486,20778.0,20772.0,0.00891429]
[1673711848790,0.002,20774.0,20772.0,0.24509542]
[1673711849031,1.92621195,20778.0,20772.0,0.10609542]
[1673711849529,0.023,20776.0,20772.0,0.58751042]
[1673711849802,0.19072595,20776.0,20772.0,0.10609542]
[1673711850048,0.002,20774.0,20772.0,0.12691429]
[1673711850302,0.67210295,20774.0,20772.0,0.00891429]
[1673711850561,0.018725,20773.0,20772.0,0.00891429]
[1673711850816,0.500119,20773.0,20772.0,0.01891429]
[1673711852069,0.500119,20773.0,20772.0,0.00891429]
[1673711852308,0.500119,20773.0,20772.0,0.12691429]
[1673711852552,0.500119,20773.0,20772.0,0.00891429]
[1673711853061,0.502119,20773.0,20772.0,0.14891429]
[1673711854058,0.020725,20773.0,20772.0,0.14891429]
[1673711854834,0.502119,20773.0,20772.0,0.14891429]
[1673711857091,0.002,20773.0,20772.0,0.14891429]
[1673711859674,0.483394,20773.0,20772.0,0.14891429]
[1673711860423,0.002,20773.0,20772.0,0.14891429]
[1673711860677,0.002,20773.0,20772.0,1.44679172]
[1673711861440,0.481293,20778.0,20773.0,0.10385526]
[1673711861694,0.481277,20779.0,20774.0,1.155263]
[1673711861924,0.481277,20779.0,20774.0,0.962718]
[1673711862176,0.481277,20779.0,20775.0,0.15593081]
[1673711862435,0.481277,20779.0,20775.0,0.63727281]
[1673711862679,0.028,20778.0,20775.0,0.63727281]
[1673711862935,0.481277,20779.0,20775.0,0.63727281]
[1673711863179,1.18125795,20779.0,20774.0,0.011]
[1673711863426,0.20945095,20778.0,20774.0,0.011]
[1673711863674,0.26772595,20778.0,20774.0,0.011]
[1673711863928,0.962612,20777.0,20774.0,0.011]
[1673711864169,0.018725,20776.0,20773.0,0.00385526]
[1673711864423,0.19072595,20776.0,20775.0,0.005]
[1673711864655,0.981373,20776.0,20773.0,0.00385526]
[1673711864928,0.018725,20775.0,20773.0,0.00385526]
[1673711865197,0.96274,20774.0,20773.0,0.00385526]
[1673711865445,0.981465,20774.0,20773.0,0.00385526]
[1673711865698,0.981465,20774.0,20773.0,0.14385526]
[1673711865956,0.981465,20774.0,20773.0,0.00385526]
[1673711866207,0.481343,20776.0,20773.0,0.00385526]
[1673711866462,0.481306,20777.0,20774.0,0.75822359]
[1673711866711,0.40880151,20777.0,20774.0,0.75822359]
[1673711866959,0.002,20775.0,20774.0,0.75822359]
[1673711867220,0.481295,20778.0,20774.0,1.8601]
[1673711867484,0.001,20777.0,20775.0,0.1]
[1673711867739,0.481295,20778.0,20774.0,1.8601]
[1673711867983,0.481295,20778.0,20775.0,0.19099553]
[1673711868801,0.022,20777.0,20775.0,0.67234053]
[1673711869055,0.481272,20779.0,20775.0,0.67234053]
[1673711869307,0.047725,20778.0,20775.0,0.67734053]
[1673711869579,0.029,20778.0,20775.0,0.67734053]
[1673711869814,0.029,20778.0,20776.0,0.19169121]
[1673711870321,0.50927,20779.0,20776.0,0.67301421]
[1673711870561,0.018725,20778.0,20776.0,0.67301421]
[1673711870813,0.48125,20780.0,20776.0,0.67301421]
[1673711871072,0.962495,20780.0,20777.0,0.11543442]
[1673711871542,0.028,20779.0,20777.0,0.11543442]
[1673711872101,0.990496,20780.0,20777.0,0.11543442]
[1673711872341,0.53725,20780.0,20777.0,0.12643442]
[1673711872598,0.53725,20780.0,20777.0,0.60773442]
[1673711872859,0.53725,20780.0,20778.0,0.12807346]
[1673711873337,0.48125,20780.0,20778.0,0.12807346]
[1673711873589,0.046725,20779.0,20778.0,0.12807346]
[1673711873856,0.48125,20780.0,20778.0,0.12807346]
[1673711874108,0.50925,20780.0,20778.0,0.13907346]
[1673711874366,0.018725,20779.0,20778.0,0.011]
[1673711874621,0.018725,20779.0,20778.0,0.07291]
[1673711874864,0.50925,20780.0,20778.0,0.07291]
[1673711875117,0.028,20780.0,20778.0,0.07291]
[1673711875413,0.96245955,20781.0,20779.0,0.11509184]
[1673711875685,0.018725,20780.0,20779.0,0.11509184]
[1673711876163,0.96246455,20781.0,20779.0,0.11509184]
[1673711876164,0.96245955,20781.0,20779.0,0.11509184]
[1673711876450,0.96245955,20781.0,20780.0,0.07451918]
[1673711876451,1.455e-05,20781.0,20780.0,0.07451918]
[1673711876696,1.455e-05,20781.0,20780.0,0.382062]
[1673711876948,1.455e-05,20781.0,20780.0,0.543141]
[1673711877198,1.455e-05,20781.0,20780.0,1.024372]
[1673711877440,0.02601455,20781.0,20780.0,1.024372]
[1673711877703,1.455e-05,20781.0,20780.0,0.06191]
[1673711877969,0.00201455,20781.0,20780.0,0.394952]
[1673711878215,1.455e-05,20781.0,20780.0,0.194042]
[1673711878462,0.00201455,20781.0,20780.0,0.333042]
[1673711880243,0.00201455,20781.0,20780.0,0.139]
[1673711880548,0.98315555,20781.0,20780.0,0.139]
[1673711882313,0.96443055,20781.0,20780.0,0.139]
[1673711882564,0.98315555,20781.0,20780.0,0.139]
[1673711882808,0.96443055,20781.0,20780.0,0.139]
[1673711883057,0.96443055,20781.0,20780.0,0.1529]
[1673711883305,0.00201455,20781.0,20780.0,0.139]
[1673711883563,0.00201455,20781.0,20780.0,1.101462]
[1673711883834,0.00201455,20781.0,20780.0,1.421614]
[1673711884078,0.00201455,20781.0,20780.0,1.75290228]
[1673711884571,0.00201455,20781.0,20780.0,1.75282878]
[1673711887548,0.00201455,20781.0,20780.0,1.43267678]
[1673711887797,0.00201455,20781.0,20780.0,0.95144578]
[1673711888804,0.00201455,20781.0,20780.0,1.29159778]
[1673711889050,0.00201455,20781.0,20780.0,1.77282878]
[1673711890050,0.00201455,20781.0,20780.0,0.81036678]
[1673711890600,0.00201455,20781.0,20780.0,2.25405978]
[1673711891347,0.00201455,20781.0,20780.0,3.04679462]
[1673711891844,0.00201455,20781.0,20780.0,3.14679462]
[1673711892344,0.00201455,20781.0,20780.0,2.65405978]
[1673711892600,0.00201455,20781.0,20780.0,3.14679462]
[1673711893353,0.00201455,20781.0,20780.0,2.25405978]
[1673711893616,0.00201455,20781.0,20780.0,1.77282878]
[1673711894384,0.00201455,20781.0,20780.0,1.29159778]
[1673711894623,0.00201455,20781.0,20780.0,0.97144578]
[1673711894876,0.00201455,20781.0,20780.0,0.1589265]
[1673711897175,0.95944015,20783.0,20781.0,0.1]
[1673711897425,0.481177,20783.0,20780.0,0.1589265]
[1673711897676,0.481177,20783.0,20781.0,0.07401785]
[1673711897925,0.49170218,20784.0,20781.0,0.07401785]
[1673711897926,0.01054218,20784.0,20781.0,0.07401785]
[1673711898175,0.01054218,20784.0,20781.0,1.03643185]
[1673711898438,0.01054218,20784.0,20782.0,0.49896132]
[1673711898724,0.01054218,20784.0,20783.0,0.19228]
[1673711898981,0.01054218,20784.0,20783.0,0.673442]
[1673711899229,0.01054218,20784.0,20783.0,0.481162]
[1673711899739,0.02954218,20784.0,20783.0,0.481162]
[1673711899990,0.01054218,20784.0,20783.0,0.7100722]
[1673711900244,0.04254218,20784.0,20783.0,1.0352242]
[1673711900491,0.04254218,20784.0,20783.0,1.5163862]
[1673711901059,0.04254218,20784.0,20783.0,1.1962342]
[1673711901282,0.04254218,20784.0,20783.0,0.7150722]
[1673711901751,0.04254218,20784.0,20783.0,0.7070722]
[1673711901999,0.04254218,20784.0,20783.0,0.005]
[1673711902745,0.04254218,20784.0,20783.0,0.06691]
[1673711902993,0.04254218,20784.0,20783.0,0.005]
[1673711905013,0.04254218,20784.0,20783.0,0.06691]
[1673711905265,0.04254218,20784.0,20783.0,0.005]
[1673711905509,1.00482018,20784.0,20783.0,0.005]
[1673711906036,1.02354518,20784.0,20783.0,0.005]
[1673711909872,2.12873544,20784.0,20783.0,0.005]
[1673711910633,1.98604339,20784.0,20783.0,0.005]
[1673711910883,1.02354518,20784.0,20783.0,0.005]
[1673711911140,1.02354518,20784.0,20783.0,0.06691]
[1673711911141,0.06126718,20784.0,20783.0,0.06691]
[1673711911401,0.04254218,20784.0,20783.0,0.1217216]
[1673711911911,0.04254218,20784.0,20783.0,0.06691]
[1673711912412,0.04254218,20784.0,20783.0,0.005]
[1673711912654,0.52368118,20784.0,20783.0,0.005]
[1673711912919,1.38026223,20784.0,20783.0,0.005]
[1673711913186,2.34274496,20784.0,20783.0,0.005]
[1673711914440,2.75258363,20784.0,20783.0,0.005]
[1673711914710,3.11175551,20784.0,20783.0,0.005]
[1673711914951,3.20323879,20784.0,20783.0,0.005]
[1673711915461,2.90323879,20784.0,20783.0,0.005]
[1673711916746,3.20323879,20784.0,20783.0,0.005]
[1673711916993,2.84406691,20784.0,20783.0,0.005]
[1673711917258,5.12650353,20784.0,20783.0,0.005]
[1673711917519,4.58346795,20784.0,20783.0,0.005]
[1673711917778,6.03811571,20784.0,20783.0,0.00481137]
[1673711918014,4.59413775,20784.0,20783.0,0.00481137]
[1673711918260,4.59413775,20784.0,20780.0,0.02]
[1673711918261,0.1,20783.0,20780.0,0.02]
[1673711918513,0.1541,20781.0,20780.0,0.02]
[1673711918759,2.39371742,20781.0,20780.0,0.02]
[1673711919007,2.50221742,20781.0,20780.0,0.02]
[1673711919267,2.88342542,20781.0,20780.0,0.02]
[1673711919519,3.3154248,20781.0,20780.0,0.02]
[1673711919765,0.1,20780.0,20776.0,0.00854388]
[1673711920029,0.21600946,20777.0,20776.0,0.00854388]
[1673711920272,2.69984326,20777.0,20776.0,0.00854388]
[1673711920524,3.42662274,20777.0,20776.0,0.00854388]
[1673711921035,3.21081242,20777.0,20776.0,0.00854388]
[1673711921289,3.21081242,20777.0,20773.0,0.00881015]
[1673711921290,3.57053295,20777.0,20773.0,0.00881015]
[1673711921557,0.29699316,20774.0,20773.0,0.00881015]
[1673711921849,1.59721,20774.0,20773.0,0.00881015]
[1673711922108,1.91562485,20774.0,20773.0,0.00881015]
[1673711922615,1.462835,20774.0,20773.0,0.00881015]
[1673711922875,1.479835,20774.0,20773.0,0.00881015]
[1673711923126,0.998465,20774.0,20773.0,0.00881015]
[1673711923388,0.49837,20774.0,20773.0,0.00881015]
[1673711923629,0.517095,20774.0,20773.0,0.00881015]
[1673711924209,0.49837,20774.0,20773.0,0.00881015]
[1673711924446,0.517095,20774.0,20773.0,0.00881015]
[1673711924690,0.035725,20774.0,20773.0,0.00881015]
[1673711924956,0.017,20774.0,20773.0,0.00881015]
[1673711925221,0.093,20777.0,20773.0,1.29175015]
[1673711925455,0.093,20777.0,20774.0,0.33029344]
[1673711925714,0.093,20777.0,20775.0,0.801464]
[1673711925969,0.093,20777.0,20776.0,0.192507]
[1673711926225,0.481255,20780.0,20775.0,0.481347]
[1673711926468,4.27923,20781.0,20776.0,0.11004614]
[1673711926469,0.135,20777.0,20776.0,0.11004614]
[1673711926985,0.135,20777.0,20776.0,1.49284614]
[1673711927486,0.85141908,20784.0,20776.0,1.79284614]
[1673711927487,0.63557934,20784.0,20776.0,1.79284614]
[1673711927730,0.63557934,20784.0,20779.0,0.481252]
[1673711927731,0.01054218,20784.0,20779.0,0.481252]
[1673711927992,0.01054218,20784.0,20780.0,0.1154951]
[1673711928745,0.02354218,20784.0,20780.0,0.1154951]
[1673711929005,0.01054218,20784.0,20780.0,0.1154951]
[1673711929249,0.02454218,20784.0,20780.0,1.2020501]
[1673711929499,0.02454218,20784.0,20781.0,0.56750286]
[1673711929757,0.02454218,20784.0,20782.0,0.673491]
[1673711930012,0.02454218,20784.0,20783.0,0.320119]
[1673711930296,0.02454218,20784.0,20782.0,0.481185]
[1673711930562,0.02454218,20784.0,20783.0,0.12097269]
[1673711930797,0.01054218,20784.0,20783.0,0.12097269]
[1673711931043,0.02454218,20784.0,20783.0,0.12097269]
[1673711931294,0.03154218,20784.0,20783.0,0.12097269]
[1673711931543,0.01054218,20784.0,20783.0,0.12155198]
[1673711931802,0.01054218,20784.0,20783.0,0.12655198]
[1673711932045,0.03654218,20784.0,20783.0,0.12655198]
[1673711932297,0.03654218,20784.0,20783.0,0.00557929]
[1673711932560,0.03654218,20784.0,20783.0,0.54865129]
[1673711932820,0.03654218,20784.0,20783.0,0.86880329]
[1673711933069,0.03654218,20784.0,20783.0,1.34996529]
[1673711933314,0.03654218,20784.0,20783.0,1.64996529]
[1673711933564,0.03654218,20784.0,20783.0,2.45511287]
[1673711933824,0.03654218,20784.0,20783.0,2.63161287]
[1673711934331,0.03654218,20784.0,20783.0,2.62661287]
[1673711934592,0.01054218,20784.0,20783.0,2.62661287]
[1673711935618,0.01133905,20785.0,20784.0,1.32325786]
[1673711935859,0.01133905,20785.0,20784.0,2.38693287]
[1673711937121,0.01114808,20787.0,20784.0,2.92713456]
[1673711937386,0.14389316,20796.0,20786.0,2.043279]
[1673711937628,0.14389316,20796.0,20788.0,1.635265]
[1673711937883,0.98383173,20797.0,20790.0,1.443]
[1673711937884,0.00157064,20791.0,20790.0,1.443]
[1673711938124,0.00157064,20791.0,20790.0,2.2536787]
[1673711938379,0.00157064,20791.0,20790.0,1.763152]
[1673711938632,0.00157064,20791.0,20790.0,2.31050286]
[1673711938877,0.00157064,20791.0,20790.0,2.41050286]
[1673711939123,0.00157064,20791.0,20790.0,2.90102956]
[1673711939399,1.175,20799.0,20793.0,1.442771]
[1673711939653,1.175,20799.0,20793.0,1.9332977]
[1673711939916,1.655797,20799.0,20794.0,0.19332977]
[1673711940154,1.655797,20799.0,20794.0,1.15513277]
[1673711940155,0.018725,20798.0,20794.0,1.15513277]
[1673711940455,0.0001,20800.0,20795.0,0.47720169]
[1673711940651,0.0001,20800.0,20796.0,0.16323345]
[1673711940909,0.0001,20800.0,20797.0,0.191909]
[1673711941144,0.0001,20800.0,20798.0,0.320103]
[1673711941450,0.0001,20800.0,20794.0,0.19332977]
[1673711941724,0.20945095,20799.0,20796.0,0.14]
[1673711941960,0.20945095,20799.0,20797.0,0.014]
[1673711941961,0.19072595,20799.0,20797.0,0.014]
[1673711942204,0.4758,20799.0,20798.0,0.062]
[1673711942512,0.494525,20799.0,20798.0,0.062]
[1673711942755,1.57324897,20799.0,20798.0,0.062]
[1673711943013,1.48174897,20799.0,20798.0,0.062]
[1673711943277,1.00454728,20799.0,20789.0,0.1]
[1673711943537,0.0769,20797.0,20789.0,0.1]
[1673711943801,1.16752064,20796.0,20788.0,0.481023]
[1673711944057,0.19072595,20795.0,20789.0,0.481021]
[1673711944349,1.03859,20797.0,20790.0,0.0962044]
[1673711944350,0.19072595,20794.0,20790.0,0.0962044]
[1673711944597,0.19072595,20793.0,20790.0,0.0962044]
[1673711944819,0.19072595,20793.0,20787.0,0.581057]
[1673711945083,0.19072595,20792.0,20788.0,0.139]
[1673711945327,0.19072595,20791.0,20788.0,0.139]
[1673711945580,0.19072595,20791.0,20789.0,0.0720057]
[1673711945826,0.480934,20793.0,20789.0,0.0720057]
[1673711946071,0.480894,20795.0,20790.0,0.139]
[1673711946570,0.018725,20794.0,20790.0,0.139]
[1673711946823,0.480916,20794.0,20791.0,0.03500057]
[1673711947074,0.018725,20793.0,20791.0,0.03500057]
[1673711947333,0.480947,20793.0,20791.0,0.03500057]
[1673711947578,0.480947,20793.0,20790.0,0.139]
[1673711947579,0.018725,20792.0,20790.0,0.139]
[1673711947819,0.018725,20792.0,20786.0,1.5706]
[1673711947820,0.480977,20791.0,20786.0,1.5706]
[1673711948077,0.19072595,20790.0,20785.0,0.5811]
[1673711948321,0.19072595,20790.0,20786.0,0.59799539]
[1673711948572,0.961879,20793.0,20787.0,0.320152]
[1673711948824,0.961879,20793.0,20791.0,0.139]
[1673711948825,0.19172595,20793.0,20791.0,0.139]
[1673711949070,0.001,20793.0,20792.0,0.320071]
[1673711949315,0.001,20793.0,20792.0,0.4001776]
[1673711949557,0.480891,20795.0,20792.0,0.0801066]
[1673711950054,0.480875,20796.0,20792.0,0.0801066]
[1673711950316,0.480875,20796.0,20792.0,0.2201066]
[1673711950317,0.001,20793.0,20792.0,0.2201066]
[1673711950569,0.001,20793.0,20788.0,0.1]
[1673711950570,0.480931,20793.0,20788.0,0.481044]
[1673711950818,0.480931,20793.0,20787.0,1.6063]
[1673711950819,0.19072595,20792.0,20787.0,2.087359]
[1673711951083,0.19072595,20791.0,20787.0,2.087359]
[1673711951324,0.19072595,20791.0,20788.0,0.58868754]
[1673711951571,0.480931,20793.0,20789.0,0.192113]
[1673711951834,0.48093,20794.0,20790.0,0.32012]
[1673711952092,0.001,20793.0,20792.0,0.14]
[1673711952350,0.001,20793.0,20792.0,0.154]
[1673711952856,0.480875,20796.0,20792.0,0.014]
[1673711953107,0.001,20794.0,20792.0,0.014]
[1673711953370,0.480916,20794.0,20792.0,0.014]
[1673711953625,0.480916,20794.0,20792.0,0.14]
[1673711953626,0.981587,20793.0,20792.0,0.14]
[1673711953873,0.981587,20793.0,20788.0,0.74957454]
[1673711953874,0.961862,20793.0,20788.0,0.74957454]
[1673711954131,0.19072595,20792.0,20789.0,0.21950225]
[1673711954387,0.67168495,20792.0,20789.0,0.21950225]
[1673711954635,1.15263895,20792.0,20789.0,0.21950225]
[1673711954876,0.961913,20792.0,20787.0,0.962101]
[1673711955117,1.15263895,20792.0,20787.0,0.962101]
[1673711955374,0.19072595,20792.0,20787.0,0.962101]
[1673711955629,2.6025,20797.0,20792.0,1.32973938]
[1673711955883,0.480875,20800.0,20794.0,0.961796]
[1673711956142,0.0001,20800.0,20795.0,0.320049]
[1673711956384,0.0001,20800.0,20796.0,0.9010595]
[1673711956644,0.0001,20800.0,20797.0,0.320017]
[1673711956909,0.0001,20800.0,20798.0,1.153631]
[1673711957159,0.0001,20800.0,20799.0,0.319984]
[1673711957924,0.0001,20800.0,20798.0,0.1]
[1673711958169,0.0011,20800.0,20799.0,0.0580816]
[1673711958411,0.0001,20800.0,20799.0,0.0580816]
[1673711958662,0.0011,20800.0,20799.0,0.6788736]
[1673711958906,0.0011,20800.0,20799.0,0.9990256]
[1673711959160,0.0021,20800.0,20799.0,0.9990256]
[1673711959407,0.0001,20800.0,20799.0,0.8590256]
[1673711959651,0.00336516,20801.0,20799.0,1.4686176]
[1673711959910,0.00336516,20801.0,20800.0,0.39675306]
[1673711960394,0.00336516,20801.0,20800.0,0.49675306]
[1673711960638,0.00705296,20805.0,20801.0,0.00329484]
[1673711960899,0.00705296,20805.0,20802.0,0.320104]
[1673711961390,0.00705296,20805.0,20800.0,0.30494106]
[1673711961642,0.00705296,20805.0,20801.0,0.09734147]
[1673711961643,0.19072595,20804.0,20801.0,0.09734147]
[1673711961899,0.00705296,20805.0,20801.0,0.138]
[1673711961900,0.19072595,20803.0,20801.0,0.138]
[1673711962135,0.018725,20803.0,20796.0,0.1281845]
[1673711962392,0.018725,20803.0,20802.0,0.138]
[1673711962646,0.48072,20803.0,20797.0,0.12596605]
[1673711962907,0.48072,20803.0,20801.0,0.138]
[1673711962908,0.19072595,20802.0,20801.0,0.138]
[1673711963161,0.018725,20801.0,20794.0,0.1]
[1673711963402,0.48072,20803.0,20795.0,0.7027007]
[1673711963403,0.19072595,20800.0,20795.0,0.7027007]
[1673711963660,0.19072595,20800.0,20796.0,0.320152]
[1673711963904,0.19072595,20800.0,20797.0,0.77501227]
[1673711964153,0.48770596,20805.0,20797.0,0.77501227]
[1673711964154,0.00705296,20805.0,20798.0,0.32012]
[1673711964399,0.00705296,20805.0,20799.0,0.580789]
[1673711964648,0.002,20800.0,20799.0,0.900941]
[1673711964893,0.00705296,20805.0,20800.0,0.19910518]
[1673711965140,0.00705296,20805.0,20801.0,1.411194]
[1673711965402,0.00705296,20805.0,20802.0,0.191792]
[1673711965657,0.00805296,20805.0,20803.0,0.320082]
[1673711965901,0.00805296,20805.0,20804.0,0.2237802]
[1673711965902,0.00705296,20805.0,20804.0,0.2237802]
[1673711966400,0.00705296,20805.0,20804.0,0.3521602]
[1673711966655,0.00705296,20805.0,20804.0,0.320152]
[1673711966905,0.018725,20804.0,20800.0,0.28146788]
[1673711967145,0.19072595,20803.0,20800.0,0.14346788]
[1673711967401,0.018725,20802.0,20800.0,0.00529318]